bitfinex-derivatives/quotes_SOLF0:USTF0_20250328
["timestamp","ask_amount","ask_price","bid_price","bid_amount"]
[1743169460029,7.6306,131.1,131.09,0.05065145]
[1743169460233,7.6306,131.1,131.03,54.10184751]
[1743169460529,37.1306,131.1,131.03,54.10184751]
[1743169460731,0.05504111,131.08,131.07,7.6324]
[1743169461032,0.05504111,131.08,131.05,0.05072876]
[1743169461220,0.05504111,131.08,131.07,7.6324]
[1743169463133,0.05504111,131.08,131.06,7.6326]
[1743169463321,0.05504111,131.08,131.05,0.05072876]
[1743169464325,0.05504111,131.08,131.07,7.6324]
[1743169470039,0.05504111,131.08,131.06,7.6326]
[1743169472144,0.05504111,131.08,131.07,7.6324]
[1743169474935,0.05504111,131.08,131.06,7.6326]
[1743169475342,0.05504111,131.08,131.05,0.05072876]
[1743169475729,7.68684111,131.08,131.05,7.68382876]
[1743169476137,7.68714111,131.08,131.05,7.68382876]
[1743169477345,7.6324,131.07,131.05,7.68382876]
[1743169477645,29.28,131.07,131.05,0.05072876]
[1743169477940,7.6329,131.06,131.05,0.05072876]
[1743169479635,38.8688,131.07,131.05,0.05072876]
[1743169479837,31.2362,131.07,131.05,0.05072876]
[1743169481245,38.8688,131.07,131.05,0.05072876]
[1743169482046,31.2362,131.07,131.05,0.05072876]
[1743169482750,38.8688,131.07,131.05,0.05072876]
[1743169483047,31.2362,131.07,131.05,0.05072876]
[1743169483547,38.8689,131.07,131.05,7.68392876]
[1743169483845,31.2362,131.07,131.05,0.05072876]
[1743169484047,38.8689,131.07,131.05,7.68392876]
[1743169484247,31.2362,131.07,131.05,0.05072876]
[1743169484637,38.8689,131.07,131.05,7.68392876]
[1743169484841,31.2362,131.07,131.05,0.05072876]
[1743169485949,38.8689,131.07,131.05,7.68402876]
[1743169486945,31.2362,131.07,131.05,0.05072876]
[1743169487846,38.8688,131.07,131.05,7.68412876]
[1743169488045,31.2362,131.07,131.05,0.05072876]
[1743169488249,0.05504111,131.08,131.07,7.6324]
[1743169495750,0.05504111,131.08,131.05,0.05072876]
[1743169496253,7.6329,131.06,131.05,0.05072876]
[1743169497657,9.7718,131.07,131.05,0.05072876]
[1743169497849,2.1391,131.07,131.05,0.05072876]
[1743169498257,9.7717,131.07,131.05,7.68412876]
[1743169498557,2.1391,131.07,131.05,0.05072876]
[1743169498856,7.6329,131.06,131.05,0.05072876]
[1743169501058,2.1391,131.07,131.01,29.22]
[1743169501259,29.22,131.06,130.98,44.61832166]
[1743169501854,29.22,131.06,131.01,7.6356]
[1743169502055,29.22,131.06,130.98,15.39832166]
[1743169502263,2.13535551,131.05,131.02,0.05609897]
[1743169502755,7.6347,131.03,131.02,0.05609897]
[1743169503660,17.53367717,131.05,130.96,44.63832166]
[1743169503853,17.47662166,131.05,130.96,44.63832166]
[1743169504365,7.6358,131.02,130.99,7.6367]
[1743169504862,7.6362,131.01,130.99,0.04998136]
[1743169505062,0.05517043,131.02,130.99,0.04998136]
[1743169505964,7.6364,131.0,130.99,0.04998136]
[1743169506363,0.05517043,131.02,130.99,0.04998136]
[1743169506867,7.6364,131.0,130.99,0.04998136]
[1743169507559,7.6381,130.98,130.92,15.39832166]
[1743169507765,29.24,131.0,130.92,44.63832166]
[1743169508061,7.6373,130.99,130.95,7.639]
[1743169508463,29.24,131.0,130.95,7.639]
[1743169508778,15.4511032,130.99,130.96,0.04897979]
[1743169508965,2.09098154,130.99,130.96,0.04897979]
[1743169509161,0.05278154,130.99,130.96,0.04897979]
[1743169509559,7.69018154,130.99,130.96,0.04897979]
[1743169509962,0.05278154,130.99,130.96,0.04897979]
[1743169510167,7.6382,130.97,130.96,0.04897979]
[1743169510367,0.05278154,130.99,130.96,0.04897979]
[1743169510771,7.638,130.98,130.96,0.04897979]
[1743169510975,0.05278154,130.99,130.96,0.04897979]
[1743169511361,15.4511032,130.99,130.91,62.0]
[1743169511572,15.39832166,130.99,130.9,44.63832166]
[1743169512474,7.6391,130.96,130.9,44.63832166]
[1743169512674,7.6924088,130.96,130.93,0.05193072]
[1743169512880,7.6924088,130.96,130.93,7.69223072]
[1743169513774,7.6394,130.95,130.93,0.05193072]
[1743169514278,7.6923088,130.96,130.93,7.69203072]
[1743169514575,0.0533088,130.96,130.93,0.05193072]
[1743169514973,0.0533088,130.96,130.94,15.39832166]
[1743169515363,0.0533088,130.96,130.95,7.6394]
[1743169516976,0.0533088,130.96,130.94,7.6396]
[1743169517477,0.0533088,130.96,130.95,7.6394]
[1743169517776,0.0533088,130.96,130.93,29.29193072]
[1743169519278,0.0533088,130.96,130.95,7.6394]
[1743169519781,0.0533088,130.96,130.93,0.05193072]
[1743169520373,7.6396,130.95,130.93,0.05193072]
[1743169520569,0.0533088,130.96,130.93,0.05193072]
[1743169520778,0.0533088,130.96,130.88,296.43832166]
[1743169520975,7.6404,130.94,130.88,267.19832166]
[1743169521280,29.24,130.94,130.86,15.39832166]
[1743169521479,7.6406,130.93,130.9,7.6418]
[1743169521683,29.24,130.94,130.86,15.39832166]
[1743169521880,0.05094175,130.93,130.9,0.04689561]
[1743169522290,7.6414,130.92,130.9,0.04689561]
[1743169522480,0.05094175,130.93,130.8,0.4749]
[1743169522481,29.24,130.91,130.8,0.4749]
[1743169522681,7.6434,130.88,130.85,7.6449]
[1743169522879,46.71042166,130.91,130.81,15.55842166]
[1743169523182,46.71042166,130.91,130.81,44.81842166]
[1743169523384,7.6432,130.89,130.81,44.81842166]
[1743169523579,0.05771711,130.87,130.81,44.81842166]
[1743169523785,0.05771711,130.87,130.81,106.81842166]
[1743169524485,0.05771711,130.87,130.85,15.39832166]
[1743169524880,29.26,130.94,130.85,15.39832166]
[1743169525082,2.145,130.95,130.88,15.39832166]
[1743169525281,2.145,130.95,130.92,7.6408]
[1743169525581,9.7847,130.95,130.92,7.6408]
[1743169525781,2.145,130.95,130.93,7.6402]
[1743169525983,2.1336,130.96,130.88,44.65832166]
[1743169526180,2.1336,130.96,130.93,0.04872176]
[1743169526181,0.05274657,130.95,130.93,0.04872176]
[1743169526380,7.69254657,130.95,130.93,0.04872176]
[1743169526784,0.05274657,130.95,130.93,0.04872176]
[1743169527686,7.69244657,130.95,130.93,0.04872176]
[1743169528488,0.05274657,130.95,130.93,0.04872176]
[1743169529987,0.05274657,130.95,130.93,7.68872176]
[1743169530184,0.05274657,130.95,130.93,0.04872176]
[1743169530781,0.05274657,130.95,130.94,7.6399]
[1743169531585,7.6368,131.0,130.97,7.6377]
[1743169532089,29.26,131.02,130.97,7.6377]
[1743169532789,0.05240449,131.01,130.98,0.0497906]
[1743169533793,7.68860449,131.01,130.98,7.6870906]
[1743169533994,7.68860449,131.01,130.98,0.0497906]
[1743169534297,7.6366,131.0,130.98,0.0497906]
[1743169535794,7.68850449,131.01,130.98,7.6873906]
[1743169536093,0.05240449,131.01,130.98,0.0497906]
[1743169536293,7.6365,131.0,130.98,0.0497906]
[1743169537094,7.68850449,131.01,130.98,7.6873906]
[1743169537389,15.45072615,131.01,130.98,0.0497906]
[1743169537589,7.637,130.99,130.98,0.0497906]
[1743169538289,7.6367,131.0,130.98,0.0497906]
[1743169538698,0.05240449,131.01,130.98,0.0497906]
[1743169538887,7.68870449,131.01,130.98,7.6870906]
[1743169539094,0.05240449,131.01,130.98,0.0497906]
[1743169539285,0.05240449,131.01,131.0,7.6364]
[1743169539489,29.24,131.08,131.0,44.63832166]
[1743169539891,7.6333,131.06,131.02,7.6348]
[1743169540291,15.39832166,131.05,131.0,29.24]
[1743169540491,15.39832166,131.01,130.96,29.24]
[1743169540696,15.39832166,131.01,130.93,44.63832166]
[1743169540998,0.05144958,130.98,130.97,0.05559193]
[1743169541391,7.68904958,130.98,130.97,0.05559193]
[1743169543389,0.05144958,130.98,130.97,0.05559193]
[1743169543900,7.68904958,130.98,130.97,0.05559193]
[1743169544896,0.05144958,130.98,130.97,0.05559193]
[1743169545403,0.05144958,130.98,130.97,7.69379193]
[1743169546598,0.05144958,130.98,130.97,0.05559193]
[1743169546992,7.68904958,130.98,130.97,0.05559193]
[1743169547197,36.92904958,130.98,130.97,0.05559193]
[1743169551499,29.29144958,130.98,130.97,0.05559193]
[1743169552003,0.05144958,130.98,130.97,0.05559193]
[1743169552600,7.68904958,130.98,130.97,0.05559193]
[1743169552797,29.29144958,130.98,130.91,281.18]
[1743169553202,15.39832166,130.97,130.91,281.18]
[1743169553397,15.39832166,130.97,130.88,15.39832166]
[1743169553702,17.37292166,130.97,130.88,44.63832166]
[1743169554107,0.05685012,130.94,130.91,0.05254332]
[1743169554306,7.6414,130.92,130.91,0.05254332]
[1743169554703,15.39832166,130.93,130.85,251.9]
[1743169554899,15.39832166,130.93,130.85,259.5449]
[1743169555205,15.39832166,130.93,130.84,44.63832166]
[1743169555505,7.6432,130.89,130.86,7.6443]
[1743169555902,7.69277421,130.89,130.86,7.70031451]
[1743169556303,0.04957421,130.89,130.86,7.70031451]
[1743169558010,0.04957421,130.89,130.86,0.05601451]
[1743169558511,0.04957421,130.89,130.88,7.6434]
[1743169559211,0.04957421,130.89,130.87,7.6437]
[1743169559710,0.04957421,130.89,130.87,7.644]
[1743169560111,0.04957421,130.89,130.86,0.05601451]
[1743169560307,7.421e-05,130.89,130.88,23.04172166]
[1743169560912,31.3534,130.96,130.93,7.6401]
[1743169561614,31.3534,130.96,130.88,15.39832166]
[1743169561814,44.63832166,130.96,130.88,15.39832166]
[1743169562020,0.05238252,130.93,130.91,0.05806632]
[1743169562318,0.05238252,130.93,130.92,7.641]
[1743169562515,0.05238252,130.93,130.91,0.05806632]
[1743169562721,7.69318252,130.93,130.91,0.05806632]
[1743169562932,0.05238252,130.93,130.91,0.05806632]
[1743169563217,7.6427,130.9,130.86,7.6443]
[1743169563617,44.63832166,130.92,130.84,106.63832166]
[1743169563820,44.63832166,130.92,130.88,7.6432]
[1743169564422,7.69687806,130.91,130.89,0.04772448]
[1743169565023,7.6423,130.9,130.89,0.04772448]
[1743169566222,7.6437,130.88,130.83,29.26]
[1743169566417,15.39832166,130.9,130.82,15.39832166]
[1743169566626,29.26,130.89,130.82,44.65832166]
[1743169566825,29.26,130.89,130.84,7.6453]
[1743169567022,29.26,130.89,130.82,44.65832166]
[1743169567323,7.69981392,130.87,130.84,7.6453]
[1743169568123,7.69981392,130.87,130.85,7.6452]
[1743169568326,0.05581392,130.87,130.85,7.6452]
[1743169568730,0.05581392,130.87,130.86,7.6446]
[1743169570130,29.26,130.92,130.9,7.6421]
[1743169570327,29.26,130.92,130.84,44.65832166]
[1743169570528,29.26,130.92,130.86,15.39832166]
[1743169570729,44.65832166,130.94,130.91,7.6414]
[1743169570928,1.9772,130.95,130.88,15.39832166]
[1743169570929,7.6398,130.95,130.88,15.39832166]
[1743169571427,0.05653085,130.93,130.9,0.04862764]
[1743169571833,15.39832166,130.92,130.9,0.04862764]
[1743169572128,15.39832166,130.92,130.87,7.6437]
[1743169572633,7.642,130.91,130.84,29.26]
[1743169573230,0.05125063,130.89,130.88,7.6431]
[1743169573425,0.05125063,130.89,130.84,29.26]
[1743169573819,0.05125063,130.89,130.88,7.6434]
[1743169574018,0.05125063,130.89,130.84,29.26]
[1743169574433,7.69425063,130.89,130.84,29.26]
[1743169574632,0.05125063,130.89,130.84,29.26]
[1743169575931,0.05125063,130.89,130.85,15.39832166]
[1743169576334,0.05125063,130.89,130.88,7.6434]
[1743169576534,5.063e-05,130.89,130.88,7.6434]
[1743169576730,364.0,130.96,130.88,7.64]
[1743169577034,379.39832166,130.96,130.89,15.39832166]
[1743169577220,364.0,130.96,130.89,15.39832166]
[1743169577424,364.0,130.96,130.9,29.26]
[1743169577831,31.2528,130.97,130.92,0.05441203]
[1743169577832,0.05277885,130.94,130.92,0.05441203]
[1743169578735,0.05277885,130.94,130.92,7.69541203]
[1743169579136,0.05277885,130.94,130.92,0.05441203]
[1743169579433,7.69297885,130.94,130.92,0.05441203]
[1743169579630,0.05277885,130.94,130.92,0.05441203]
[1743169579830,0.05277885,130.94,130.92,7.69551203]
[1743169580035,0.05277885,130.94,130.92,0.05441203]
[1743169580329,0.05277885,130.94,130.93,7.6405]
[1743169580534,0.05277885,130.94,130.92,0.05441203]
[1743169580935,7.6405,130.93,130.92,0.05441203]
[1743169581238,0.05277885,130.94,130.92,0.05441203]
[1743169581427,7.69297885,130.94,130.92,0.05441203]
[1743169581624,0.05277885,130.94,130.92,0.05441203]
[1743169582027,0.05277885,130.94,130.93,7.6405]
[1743169582629,0.05277885,130.94,130.92,0.05441203]
[1743169583536,0.05277885,130.94,130.92,7.69541203]
[1743169583934,0.05277885,130.94,130.92,0.05441203]
[1743169586139,0.05277885,130.94,130.92,7.69541203]
[1743169587234,0.05277885,130.94,130.92,0.05441203]
[1743169587436,7.6405,130.93,130.92,0.05441203]
[1743169587937,7.69307885,130.94,130.92,0.05441203]
[1743169588144,0.05277885,130.94,130.92,0.05441203]
[1743169588546,0.05277885,130.94,130.92,7.69521203]
[1743169588740,0.05277885,130.94,130.92,0.05441203]
[1743169589140,0.05277885,130.94,130.92,7.69511203]
[1743169589641,0.05277885,130.94,130.93,7.6405]
[1743169590340,59.79911716,132.04,130.92,15.45273369]
[1743169590341,42.29270834,131.03,130.92,15.45273369]
[1743169590549,42.29270834,131.03,130.98,15.39832166]
[1743169590742,42.29270834,131.03,130.98,44.63832166]
[1743169590934,42.29270834,131.03,130.98,29.24]
[1743169591338,7.6363,131.01,130.98,29.24]
[1743169591538,7.6363,131.01,130.99,0.05040458]
[1743169591734,0.05731418,131.02,130.99,0.05040458]
[1743169592142,0.05731418,131.02,131.0,7.6364]
[1743169592446,0.05731418,131.02,130.99,0.05040458]
[1743169593744,0.05731418,131.02,130.99,7.68710458]
[1743169593941,0.05731418,131.02,130.99,0.05040458]
[1743169594139,0.05731418,131.02,131.01,7.6359]
[1743169594745,0.05731418,131.02,131.0,7.6361]
[1743169595046,0.05731418,131.02,130.99,0.05040458]
[1743169595853,0.05731418,131.02,131.0,7.6362]
[1743169596252,0.05731418,131.02,130.99,0.05040458]
[1743169597156,7.6364,131.0,130.99,0.05040458]
[1743169598156,15.39832166,131.0,130.93,252.0]
[1743169598344,15.39832166,131.0,130.94,7.6396]
[1743169598549,7.6387,130.97,130.93,252.0]
[1743169598748,15.39832166,130.98,130.92,29.24]
[1743169598958,44.63832166,130.98,130.9,15.39832166]
[1743169599151,7.6408,130.93,130.89,29.24]
[1743169599353,0.0517858,130.95,130.93,0.05598176]
[1743169599556,15.39832166,130.96,130.9,7.6419]
[1743169599754,0.05119415,130.95,130.93,0.05540223]
[1743169600848,0.05119415,130.95,130.94,7.6399]
[1743169601947,0.05119415,130.95,130.93,36.93560223]
[1743169602151,0.05119415,130.95,130.93,29.29540223]
[1743169602556,0.05119415,130.95,130.94,7.6399]
[1743169606649,9.415e-05,130.95,130.94,7.6399]
[1743169607855,9.415e-05,130.95,130.94,23.03822166]
[1743169608060,9.415e-05,130.95,130.94,52.27822166]
[1743169608858,9.415e-05,130.95,130.94,36.8799]
[1743169610362,9.415e-05,130.95,130.94,29.24]
[1743169611255,9.415e-05,130.95,130.93,7.69570223]
[1743169612565,9.415e-05,130.95,130.94,7.6399]
[1743169614865,9.415e-05,130.95,130.93,7.69570223]
[1743169615261,9.415e-05,130.95,130.93,0.05540223]
[1743169615456,7.63979415,130.95,130.93,0.05540223]
[1743169615664,9.415e-05,130.95,130.93,0.05540223]
[1743169616069,7.63979415,130.95,130.93,0.05540223]
[1743169616265,9.415e-05,130.95,130.93,0.05540223]
[1743169616765,9.415e-05,130.95,130.94,7.6399]
[1743169618263,9.415e-05,130.95,130.93,7.69560223]
[1743169618463,9.415e-05,130.95,130.93,0.05540223]
[1743169618865,9.415e-05,130.95,130.94,7.6399]
[1743169619067,9.415e-05,130.95,130.93,0.05540223]
[1743169619562,7.6399,130.94,130.93,0.05540223]
[1743169620163,7.63969415,130.95,130.93,0.05540223]
[1743169620362,9.415e-05,130.95,130.93,0.05540223]
[1743169621367,15.39832166,130.94,130.87,313.88]
[1743169621563,15.39832166,130.94,130.87,251.88]
[1743169621758,7.6421,130.91,130.86,29.22]
[1743169621962,15.39832166,130.92,130.85,29.24]
[1743169622462,15.39832166,130.92,130.86,7.6444]
[1743169622662,0.05638011,130.9,130.87,0.05650895]
[1743169623969,15.45470177,130.9,130.87,0.05650895]
[1743169624166,7.6434,130.88,130.87,0.05650895]
[1743169624374,2.1285,130.89,130.84,7.6456]
[1743169624968,2.1285,130.89,130.81,343.16]
[1743169625474,0.05131841,130.86,130.83,7.6461]
[1743169626270,7.69601841,130.86,130.83,7.6461]
[1743169627671,7.6452,130.85,130.82,7.6467]
[1743169628466,7.69621841,130.86,130.82,7.6467]
[1743169628670,0.05131841,130.86,130.81,251.92]
[1743169629473,0.05131841,130.86,130.83,7.6461]
[1743169629969,0.05131841,130.86,130.82,15.39832166]
[1743169630172,0.05131841,130.86,130.83,29.24]
[1743169631776,0.05131841,130.86,130.85,7.6452]
[1743169635277,1.841e-05,130.86,130.85,7.6452]
[1743169635777,4.2251,130.93,130.91,7.6416]
[1743169635979,44.63832166,130.97,130.89,15.39832166]
[1743169636277,7.6391,130.96,130.93,7.6402]
[1743169636575,29.24,130.97,130.9,29.24]
[1743169636876,15.45276463,130.95,130.92,0.05131841]
[1743169637476,7.6402,130.94,130.92,0.05131841]
[1743169637673,15.45276463,130.95,130.92,0.05131841]
[1743169638373,0.05444297,130.95,130.92,0.05131841]
[1743169638675,0.05444297,130.95,130.93,7.6405]
[1743169639383,0.05444297,130.95,130.92,0.05131841]
[1743169639771,0.05444297,130.95,130.93,7.6402]
[1743169640271,0.05444297,130.95,130.93,7.6403]
[1743169640881,0.05444297,130.95,130.94,7.6399]
[1743169642178,0.05444297,130.95,130.92,0.05131841]
[1743169642676,7.69414297,130.95,130.92,7.69221841]
[1743169643283,0.05444297,130.95,130.93,7.6405]
[1743169644375,0.05444297,130.95,130.94,7.6399]
[1743169645379,4.297e-05,130.95,130.94,7.6399]
[1743169646088,7.6356,131.02,130.99,7.637]
[1743169646779,4.0335,131.03,130.96,29.22]
[1743169646979,15.39832166,131.02,130.96,29.22]
[1743169647380,0.05769072,131.0,130.98,0.05666395]
[1743169647880,0.05769072,131.0,130.98,7.69386395]
[1743169648088,0.05769072,131.0,130.98,0.05666395]
[1743169648378,0.05769072,131.0,130.99,7.637]
[1743169648784,2.0504,131.07,130.99,44.61832166]
[1743169648977,17.44872166,131.07,130.99,91.22]
[1743169649579,17.44872166,131.07,131.01,7.6358]
[1743169649580,7.6339,131.05,131.01,7.6358]
[1743169649785,17.44872166,131.07,130.99,29.22]
[1743169649981,0.0537044,131.04,131.02,0.05395833]
[1743169650181,7.6347,131.03,131.02,0.05395833]
[1743169651486,0.0537044,131.04,131.02,0.05395833]
[1743169652781,0.0537044,131.04,131.02,7.68895833]
[1743169653082,0.0537044,131.04,131.02,0.05395833]
[1743169655189,0.0537044,131.04,131.02,7.68895833]
[1743169655386,0.0537044,131.04,131.02,0.05395833]
[1743169655686,0.0537044,131.04,131.02,7.68895833]
[1743169655987,0.0537044,131.04,131.02,0.05395833]
[1743169656189,0.0537044,131.04,131.03,7.6347]
[1743169656489,0.0537044,131.04,131.02,0.05395833]
[1743169657085,0.0537044,131.04,131.03,7.6347]
[1743169657280,0.0537044,131.04,131.02,0.05395833]
[1743169657676,0.0537044,131.04,131.02,7.68895833]
[1743169657888,0.0537044,131.04,131.02,0.05395833]
[1743169658287,0.0537044,131.04,131.03,7.6347]
[1743169659085,19.48882166,131.12,131.06,7.6326]
[1743169659488,48.68882166,131.12,131.06,7.6326]
[1743169659789,15.39832166,131.1,131.03,15.39832166]
[1743169660084,15.39832166,131.1,131.02,29.22]
[1743169660276,0.05771291,131.08,131.05,0.05250484]
[1743169660875,7.68981291,131.08,131.05,0.05250484]
[1743169661587,7.6326,131.07,131.05,0.05250484]
[1743169661789,15.45603457,131.08,131.05,0.05250484]
[1743169661986,1.9993,131.07,131.05,0.05250484]
[1743169662184,0.05771291,131.08,131.05,0.05250484]
[1743169662586,0.05771291,131.08,131.06,7.6326]
[1743169663390,0.05771291,131.08,131.05,7.68570484]
[1743169664791,0.05771291,131.08,131.06,7.6328]
[1743169665182,7.68951291,131.08,131.05,0.05250484]
[1743169665387,0.05771291,131.08,131.05,0.05250484]
[1743169665692,7.68981291,131.08,131.05,0.05250484]
[1743169665990,7.68981291,131.08,131.05,7.68570484]
[1743169666492,0.05771291,131.08,131.06,7.6329]
[1743169667287,0.05771291,131.08,131.05,0.05250484]
[1743169667488,0.05771291,131.08,131.05,15.4508265]
[1743169668380,0.05771291,131.08,131.07,7.6324]
[1743169668790,0.05771291,131.08,131.07,52.23072166]
[1743169668998,7.6286,131.14,131.11,7.63]
[1743169669192,1.9511,131.15,131.07,44.59832166]
[1743169669392,1.9511,131.15,131.11,7.6296]
[1743169669888,7.6284,131.14,131.11,7.6296]
[1743169670089,0.0574013,131.14,131.12,7.68018324]
[1743169670391,0.0574013,131.14,131.07,44.59832166]
[1743169670591,7.6858013,131.14,131.12,0.05082182]
[1743169670801,0.0574013,131.14,131.12,0.0563144]
[1743169672392,0.0574013,131.14,131.12,7.6855144]
[1743169672997,0.0574013,131.14,131.12,0.0563144]
[1743169673494,7.6857013,131.14,131.12,0.0563144]
[1743169673697,15.45572296,131.14,131.05,251.74]
[1743169673892,29.2,131.16,131.06,29.18]
[1743169674092,7.6303,131.11,131.06,29.18]
[1743169674401,7.6303,131.11,131.08,7.6317]
[1743169674600,7.6298,131.12,131.08,7.6317]
[1743169674798,15.39832166,131.15,131.1,7.6305]
[1743169674991,15.39832166,131.15,131.09,0.05879872]
[1743169675192,0.05466405,131.12,131.09,0.05879872]
[1743169675690,0.05466405,131.12,131.1,7.6303]
[1743169676695,0.05466405,131.12,131.09,0.05879872]
[1743169676895,7.68446405,131.12,131.09,0.05879872]
[1743169678203,7.68446405,131.12,131.09,7.68969872]
[1743169678603,0.05466405,131.12,131.1,7.6306]
[1743169678901,0.05466405,131.12,131.09,0.05879872]
[1743169679204,7.68426405,131.12,131.09,7.68979872]
[1743169679600,0.05466405,131.12,131.09,0.05879872]
[1743169679795,0.05466405,131.12,131.1,7.6301]
[1743169680002,0.05466405,131.12,131.09,0.05879872]
[1743169680205,0.05466405,131.12,131.09,7.68959872]
[1743169680504,0.05466405,131.12,131.09,0.05879872]
[1743169680716,7.63,131.11,131.09,0.05879872]
[1743169681006,0.05466405,131.12,131.09,0.05879872]
[1743169681307,0.05466405,131.12,131.11,7.63]
[1743169682000,6.405e-05,131.12,131.11,7.63]
[1743169682607,42.29270834,131.19,131.11,7.62]
[1743169682800,42.29270834,131.19,131.12,29.18]
[1743169683000,158.20842507,131.21,131.17,7.6265]
[1743169683001,49.91790834,131.2,131.17,7.6265]
[1743169683605,49.91790834,131.2,131.16,7.627]
[1743169683801,49.97646774,131.2,131.17,0.05251166]
[1743169684007,42.35126774,131.2,131.17,0.05251166]
[1743169684408,7.626,131.18,131.11,15.39832166]
[1743169684599,15.39832166,131.15,131.09,7.631]
[1743169684800,44.57832166,131.15,131.05,296.31832166]
[1743169685004,7.6292,131.13,131.06,1.39990938]
[1743169685204,44.57832166,131.15,131.06,1.39990938]
[1743169685404,15.39832166,131.13,131.05,296.31832166]
[1743169685607,0.05503617,131.11,131.1,7.6303]
[1743169685797,44.57832166,131.15,131.1,7.6303]
[1743169686003,0.05036581,131.12,131.1,7.6303]
[1743169686413,0.05036581,131.12,131.09,0.05455273]
[1743169686604,7.6306,131.1,131.09,0.05455273]
[1743169686906,0.05036581,131.12,131.09,0.05455273]
[1743169687803,7.6306,131.1,131.09,0.05455273]
[1743169688608,15.39832166,131.11,131.05,251.74]
[1743169688811,15.39832166,131.11,131.03,29.18]
[1743169689203,7.6315,131.09,131.06,7.6326]
[1743169689405,15.39832166,131.11,131.03,29.18]
[1743169689703,0.05541457,131.08,131.06,0.05622687]
[1743169690407,0.05541457,131.08,131.07,7.6319]
[1743169690712,0.05541457,131.08,131.06,0.05622687]
[1743169690909,0.05541457,131.08,131.06,7.68862687]
[1743169692607,0.05541457,131.08,131.06,0.05622687]
[1743169693907,7.6324,131.07,131.06,0.05622687]
[1743169695114,7.68751457,131.08,131.06,0.05622687]
[1743169695616,7.6324,131.07,131.06,0.05622687]
[1743169696619,7.68751457,131.08,131.06,0.05622687]
[1743169697009,0.05541457,131.08,131.06,0.05622687]
[1743169697502,0.05541457,131.08,131.07,7.6324]
[1743169697706,0.05541457,131.08,131.06,0.05622687]
[1743169698308,7.68761457,131.08,131.06,0.05622687]
[1743169698913,0.05541457,131.08,131.06,0.05622687]
[1743169699720,0.05541457,131.08,131.06,7.68912687]
[1743169700113,7.68731457,131.08,131.06,0.05622687]
[1743169700316,0.05541457,131.08,131.06,0.05622687]
[1743169702813,7.68721457,131.08,131.06,0.05622687]
[1743169703313,0.05541457,131.08,131.06,0.05622687]
[1743169703522,7.6324,131.07,131.06,0.05622687]
[1743169704018,7.68741457,131.08,131.06,0.05622687]
[1743169704225,0.05541457,131.08,131.06,0.05622687]
[1743169704823,0.05541457,131.08,131.06,7.68892687]
[1743169705222,0.05541457,131.08,131.06,0.05622687]
[1743169705417,0.05541457,131.08,131.07,7.6324]
[1743169705617,0.05541457,131.08,131.06,0.05622687]
[1743169705820,0.05541457,131.08,131.06,7.68912687]
[1743169706330,0.05541457,131.08,131.06,0.05622687]
[1743169707230,7.68721457,131.08,131.06,0.05622687]
[1743169707432,0.05541457,131.08,131.06,0.05622687]
[1743169707934,7.6324,131.07,131.06,0.05622687]
[1743169708134,0.05541457,131.08,131.03,29.18]
[1743169708334,7.6336,131.05,131.03,29.18]
[1743169708729,1.9727,131.07,131.03,29.18]
[1743169708929,17.37102166,131.07,130.98,16.22892166]
[1743169709130,17.37102166,131.07,131.0,29.18]
[1743169709331,0.05351593,131.04,131.02,0.05691429]
[1743169709531,0.05351593,131.04,131.02,7.69191429]
[1743169710827,0.05351593,131.04,131.02,0.05691429]
[1743169711234,7.6347,131.03,131.02,0.05691429]
[1743169711434,0.05351593,131.04,131.02,0.05691429]
[1743169712838,15.39832166,131.03,130.94,15.49812166]
[1743169713140,7.6361,131.01,130.97,7.6376]
[1743169713942,0.05801282,131.0,130.98,0.04920987]
[1743169714644,0.05801282,131.0,130.99,7.637]
[1743169715040,0.05801282,131.0,130.98,7.68650987]
[1743169715239,0.05801282,131.0,130.98,0.04920987]
[1743169715741,7.69481282,131.0,130.98,0.04920987]
[1743169716743,0.05801282,131.0,130.98,0.04920987]
[1743169717441,0.05801282,131.0,130.99,7.637]
[1743169718044,0.05801282,131.0,130.98,7.68650987]
[1743169719042,0.05801282,131.0,130.99,7.637]
[1743169720741,0.05801282,131.0,130.98,0.04920987]
[1743169722433,0.05801282,131.0,130.98,7.68650987]
[1743169722840,0.05801282,131.0,130.98,0.04920987]
[1743169723047,0.05801282,131.0,130.99,7.637]
[1743169726244,2.0819,131.07,130.98,44.62753153]
[1743169726445,99.98373837,131.11,131.03,15.39832166]
[1743169726446,2.0763,131.08,131.03,15.39832166]
[1743169726644,71.47270834,131.1,131.03,15.39832166]